[Event "Kvibergspelen September 2019"]
[Site "Prioritet Serneke Arena, Krutvagen 2, Gothenburg, Sweden"]
[Date "2019.09.28"]
[Round "5.8"]
[White "Ernst, Thomas"]
[Black "Rasti, Arvin"]
[Result "1/2-1/2"]
[TimeControl "15 minutes + 5 seconds per move from move one (Round 1 - 4) / 90 minutes + 30 seconds per move from move one (Round 5 - 8)"]
[WhiteTitle "GM"]
[WhiteFideId "1700065"]
[BlackFideId "1741160"]
[WhiteElo "2328"]
[BlackElo "2182"]

1. e4 {[%clk 01:30:56]} {[%emt 00:00:04]} c5 {[%clk 01:30:35]} {[%emt
00:00:24]} 2. Nf3 {[%clk 01:31:16]} {[%emt 00:00:11]} d6 {[%clk 01:30:48]}
{[%emt 00:00:16]} 3. d4 {[%clk 01:31:16]} {[%emt 00:00:31]} cxd4 {[%clk
01:31:08]} {[%emt 00:00:10]} 4. Nxd4 {[%clk 01:31:42]} {[%emt 00:00:05]} Nf6
{[%clk 01:31:29]} {[%emt 00:00:08]} 5. Nc3 {[%clk 01:32:06]} {[%emt 00:00:06]}
g6 {[%clk 01:31:54]} {[%emt 00:00:05]} 6. Be3 {[%clk 01:32:17]} {[%emt
00:00:20]} Bg7 {[%clk 01:31:53]} {[%emt 00:00:30]} 7. f3 {[%clk 01:32:33]}
{[%emt 00:00:14]} O-O {[%clk 01:32:13]} {[%emt 00:00:09]} 8. Qd2 {[%clk
01:32:53]} {[%emt 00:00:10]} Nc6 {[%clk 01:32:36]} {[%emt 00:00:08]} 9. Bc4
{[%clk 01:33:09]} {[%emt 00:00:14]} Bd7 {[%clk 01:32:59]} {[%emt 00:00:07]} 10.
h4 {[%clk 01:33:20]} {[%emt 00:00:19]} h5 {[%clk 01:31:54]} {[%emt 00:01:35]}
11. O-O-O {[%clk 01:33:28]} {[%emt 00:00:22]} Rc8 {[%clk 01:32:19]} {[%emt
00:00:05]} 12. Bb3 {[%clk 01:33:51]} {[%emt 00:00:07]} Ne5 {[%clk 01:32:46]}
{[%emt 00:00:04]} 13. Bg5 {[%clk 01:33:54]} {[%emt 00:00:27]} Rc5 {[%clk
01:33:10]} {[%emt 00:00:06]} 14. Kb1 {[%clk 01:34:08]} {[%emt 00:00:15]} Nc4
{[%clk 01:08:21]} {[%emt 00:25:19]} 15. Qe2 {[%clk 01:03:17]} {[%emt 00:31:21]}
Na3+ {[%clk 01:05:30]} {[%emt 00:03:21]} 16. Kc1 {[%clk 00:58:18]} {[%emt
00:05:30]} Rxc3 {[%clk 01:01:30]} {[%emt 00:04:31]} 17. bxc3 {[%clk 00:58:41]}
{[%emt 00:00:06]} e5 {[%clk 01:01:54]} {[%emt 00:00:06]} 18. Kb2 {[%clk
00:54:29]} {[%emt 00:04:42]} Qa5 {[%clk 00:59:27]} {[%emt 00:02:57]} 19. Bd2
{[%clk 00:51:43]} {[%emt 00:03:15]} Qc5 {[%clk 00:33:24]} {[%emt 00:26:34]} 20.
Qd3 {[%clk 00:49:47]} {[%emt 00:02:25]} Rc8 {[%clk 00:14:27]} {[%emt 00:19:28]}
21. Ne2 {[%clk 00:48:22]} {[%emt 00:01:54]} Bb5 {[%clk 00:13:06]} {[%emt
00:01:51]} 22. Be3 {[%clk 00:48:38]} {[%emt 00:00:14]} Bxd3 {[%clk 00:08:20]}
{[%emt 00:05:17]} 23. Bxc5 {[%clk 00:49:01]} {[%emt 00:00:07]} Bxe2 {[%clk
00:08:45]} {[%emt 00:00:05]} 24. Bxa3 {[%clk 00:48:46]} {[%emt 00:00:45]} Bxd1
{[%clk 00:09:10]} {[%emt 00:00:05]} 25. Rxd1 {[%clk 00:49:09]} {[%emt
00:00:06]} Ne8 {[%clk 00:09:16]} {[%emt 00:00:23]} 26. Ba4 {[%clk 00:41:26]}
{[%emt 00:08:12]} Bf8 {[%clk 00:09:22]} {[%emt 00:00:26]} 27. Bxe8 {[%clk
00:39:44]} {[%emt 00:02:12]} Rxe8 {[%clk 00:09:47]} {[%emt 00:00:05]} 28. c4
{[%clk 00:38:47]} {[%emt 00:01:26]} b6 {[%clk 00:08:36]} {[%emt 00:01:41]} 29.
Bb4 {[%clk 00:38:57]} {[%emt 00:00:19]} Rc8 {[%clk 00:08:23]} {[%emt 00:00:43]}
30. Kb3 {[%clk 00:39:01]} {[%emt 00:00:26]} Be7 {[%clk 00:08:21]} {[%emt
00:00:32]} 31. Rd5 {[%clk 00:35:54]} {[%emt 00:03:36]} Rc6 {[%clk 00:07:43]}
{[%emt 00:01:09]} 32. Be1 {[%clk 00:33:05]} {[%emt 00:03:19]} Kf8 {[%clk
00:07:17]} {[%emt 00:00:57]} 33. a4 {[%clk 00:32:13]} {[%emt 00:01:22]} Rc5
{[%clk 00:06:29]} {[%emt 00:01:17]} 34. Bf2 {[%clk 00:31:55]} {[%emt 00:00:48]}
Rxd5 {[%clk 00:05:36]} {[%emt 00:01:24]} 35. cxd5 {[%clk 00:32:23]} {[%emt
00:00:03]} Bd8 {[%clk 00:05:45]} {[%emt 00:00:20]} 36. Kb4 {[%clk 00:27:24]}
{[%emt 00:05:28]} a6 {[%clk 00:05:32]} {[%emt 00:00:45]} 37. c4 {[%clk
00:27:42]} {[%emt 00:00:12]} Ke8 {[%clk 00:05:49]} {[%emt 00:00:12]} 38. g3
{[%clk 00:26:34]} {[%emt 00:01:37]} Kd7 {[%clk 00:05:38]} {[%emt 00:00:42]} 39.
a5 {[%clk 00:26:28]} {[%emt 00:00:36]} bxa5+ {[%clk 00:06:03]} {[%emt
00:00:05]} 40. Ka4 {[%clk 00:26:54]} {[%emt 00:00:04]} Kc8 {[%clk 00:06:11]}
{[%emt 00:00:21]} 41. c5 {[%clk 00:26:45]} {[%emt 00:00:39]} dxc5 {[%clk
00:06:29]} {[%emt 00:00:13]} 42. Bxc5 {[%clk 00:27:13]} {[%emt 00:00:02]} Kb7
{[%clk 00:05:35]} {[%emt 00:01:24]} 43. Bd6 {[%clk 00:27:00]} {[%emt 00:00:41]}
Bc7 {[%clk 00:02:41]} {[%emt 00:03:27]} 44. Bxc7 {[%clk 00:26:58]} {[%emt
00:00:31]} Kxc7 {[%clk 00:03:10]} {[%emt 00:00:01]} 45. Kxa5 {[%clk 00:27:19]}
{[%emt 00:00:09]} Kb7 {[%clk 00:03:34]} {[%emt 00:00:06]} 46. d6 {[%clk
00:24:09]} {[%emt 00:03:40]} Kc6 {[%clk 00:04:01]} {[%emt 00:00:04]} 47. Kxa6
{[%clk 00:24:34]} {[%emt 00:00:05]} Kxd6 {[%clk 00:04:25]} {[%emt 00:00:06]} 48.
Kb6 {[%clk 00:24:27]} {[%emt 00:00:37]} f5 {[%clk 00:04:20]} {[%emt 00:00:35]}
49. Kb5 {[%clk 00:24:14]} {[%emt 00:00:42]} f4 {[%clk 00:04:18]} {[%emt
00:00:32]} 50. gxf4 {[%clk 00:24:37]} {[%emt 00:00:08]} exf4 {[%clk 00:04:48]}
51. Kc4 {[%clk 00:24:38]} {[%emt 00:00:29]} Ke5 {[%clk 00:04:58]} {[%emt
00:00:20]} 52. Kd3 {[%clk 00:23:00]} {[%emt 00:02:07]} Kf6 {[%clk 00:05:24]}
{[%emt 00:00:04]} 53. Kd4 {[%clk 00:22:18]} {[%emt 00:01:11]} Ke6 {[%clk
00:04:40]} {[%emt 00:01:14]} 54. Kd3 {[%clk 00:19:30]} {[%emt 00:03:18]} Kf6
{[%clk 00:05:02]} {[%emt 00:00:08]} 55. Kd4 {[%clk 00:15:42]} {[%emt 00:04:18]}
Ke6 {[%clk 00:05:29]} {[%emt 00:00:04]} 56. e5 {[%clk 00:15:22]} {[%emt
00:00:49]} g5 {[%clk 00:05:44]} {[%emt 00:00:15]} 57. Ke4 {[%clk 00:15:40]}
{[%emt 00:00:12]} gxh4 {[%clk 00:06:12]} {[%emt 00:00:03]} 58. Kxf4 {[%clk
00:16:03]} {[%emt 00:00:07]} h3 {[%clk 00:06:38]} {[%emt 00:00:03]} 59. Kg3
{[%clk 00:16:24]} {[%emt 00:00:09]} Kxe5 {[%clk 00:07:05]} {[%emt 00:00:04]} 60.
Kxh3 {[%clk 00:16:46]} {[%emt 00:00:07]} 1/2-1/2

[Event "Kvibergspelen September 2019"]
[Site "Prioritet Serneke Arena, Krutvagen 2, Gothenburg, Sweden"]
[Date "2019.09.28"]
[Round "5.9"]
[White "Svensson, Mikael"]
[Black "Sorensen, Hampus"]
[Result "0-1"]
[TimeControl "15 minutes + 5 seconds per move from move one (Round 1 - 4) / 90 minutes + 30 seconds per move from move one (Round 5 - 8)"]
[BlackTitle "FM"]
[WhiteFideId "1716433"]
[BlackFideId "8703884"]
[WhiteElo "2163"]
[BlackElo "2319"]

1. d4 {[%clk 01:30:57]} {[%emt 00:00:02]} d5 {[%clk 01:30:39]} {[%emt
00:00:20]} 2. c4 {[%clk 01:31:18]} {[%emt 00:00:10]} c6 {[%clk 01:30:46]}
{[%emt 00:00:23]} 3. Nf3 {[%clk 01:31:41]} {[%emt 00:00:07]} Nf6 {[%clk
01:31:05]} {[%emt 00:00:10]} 4. e3 {[%clk 01:32:06]} {[%emt 00:00:06]} a6
{[%clk 01:30:25]} {[%emt 00:01:10]} 5. Nc3 {[%clk 01:32:16]} {[%emt 00:00:21]}
e6 {[%clk 01:30:37]} {[%emt 00:00:18]} 6. b3 {[%clk 01:21:50]} {[%emt
00:10:56]} Bb4 {[%clk 01:30:14]} {[%emt 00:00:52]} 7. Bd2 {[%clk 01:21:39]}
{[%emt 00:00:41]} Nbd7 {[%clk 01:29:25]} {[%emt 00:01:19]} 8. Bd3 {[%clk
01:19:01]} {[%emt 00:03:08]} O-O {[%clk 01:28:56]} {[%emt 00:00:59]} 9. O-O
{[%clk 01:19:26]} {[%emt 00:00:06]} Bd6 {[%clk 01:28:52]} {[%emt 00:00:33]} 10.
Qc2 {[%clk 01:12:18]} {[%emt 00:07:38]} Qe7 {[%clk 01:25:34]} {[%emt 00:03:48]}
11. e4 {[%clk 01:09:14]} {[%emt 00:03:34]} dxc4 {[%clk 01:24:11]} {[%emt
00:01:53]} 12. Bxc4 {[%clk 01:04:18]} {[%emt 00:05:26]} e5 {[%clk 01:22:25]}
{[%emt 00:02:17]} 13. d5 {[%clk 00:58:56]} {[%emt 00:05:52]} Nc5 {[%clk
01:11:13]} {[%emt 00:11:41]} 14. b4 {[%clk 00:50:07]} {[%emt 00:09:20]} Ncd7
{[%clk 01:11:04]} {[%emt 00:00:39]} 15. a3 {[%clk 00:50:28]} {[%emt 00:00:09]}
Nb6 {[%clk 01:07:35]} {[%emt 00:03:58]} 16. Bb3 {[%clk 00:44:52]} {[%emt
00:06:06]} cxd5 {[%clk 01:04:19]} {[%emt 00:03:47]} 17. exd5 {[%clk 00:43:35]}
{[%emt 00:01:48]} Bg4 {[%clk 00:52:17]} {[%emt 00:12:31]} 18. Ng5 {[%clk
00:43:03]} {[%emt 00:01:02]} Rac8 {[%clk 00:49:49]} {[%emt 00:02:59]} 19. Qd3
{[%clk 00:38:36]} {[%emt 00:04:57]} Nbd7 {[%clk 00:42:01]} {[%emt 00:08:18]} 20.
Rfe1 {[%clk 00:37:58]} {[%emt 00:01:08]} h6 {[%clk 00:40:29]} {[%emt 00:02:02]}
21. Nge4 {[%clk 00:37:43]} {[%emt 00:00:44]} Bf5 {[%clk 00:40:43]} {[%emt
00:00:16]} 22. Qf3 {[%clk 00:29:38]} {[%emt 00:08:35]} Bxe4 {[%clk 00:39:30]}
{[%emt 00:01:42]} 23. Nxe4 {[%clk 00:29:59]} {[%emt 00:00:09]} Nxe4 {[%clk
00:39:51]} {[%emt 00:00:09]} 24. Qxe4 {[%clk 00:28:31]} {[%emt 00:01:59]} f5
{[%clk 00:39:30]} {[%emt 00:00:51]} 25. Qe3 {[%clk 00:28:10]} {[%emt 00:00:51]}
Nf6 {[%clk 00:32:51]} {[%emt 00:07:10]} 26. Bc3 {[%clk 00:23:40]} {[%emt
00:05:00]} Ng4 {[%clk 00:23:59]} {[%emt 00:09:22]} 27. Qd2 {[%clk 00:23:44]}
{[%emt 00:00:26]} Qh4 {[%clk 00:22:15]} {[%emt 00:02:13]} 28. h3 {[%clk
00:22:59]} {[%emt 00:01:14]} Nxf2 {[%clk 00:22:25]} {[%emt 00:00:21]} 29. Bxe5
{[%clk 00:22:19]} {[%emt 00:01:09]} Bxe5 {[%clk 00:22:17]} {[%emt 00:00:39]} 30.
d6+ {[%clk 00:18:37]} {[%emt 00:04:12]} Kh8 {[%clk 00:22:39]} {[%emt 00:00:08]}
31. Rxe5 {[%clk 00:18:21]} {[%emt 00:00:46]} Nxh3+ {[%clk 00:22:34]} {[%emt
00:00:35]} 32. Kf1 {[%clk 00:17:01]} {[%emt 00:01:49]} Ng5 {[%clk 00:19:30]}
{[%emt 00:03:35]} 33. Qf2 {[%clk 00:12:01]} {[%emt 00:05:31]} Qh2 {[%clk
00:15:26]} {[%emt 00:04:34]} 34. Qd4 {[%clk 00:06:54]} {[%emt 00:05:36]} Ne4
{[%clk 00:14:21]} {[%emt 00:01:36]} 35. d7 {[%clk 00:04:43]} {[%emt 00:02:40]}
Rcd8 {[%clk 00:14:39]} {[%emt 00:00:12]} 36. Rd1 {[%clk 00:03:45]} {[%emt
00:01:27]} Qh1+ {[%clk 00:12:49]} {[%emt 00:02:21]} 37. Qg1 {[%clk 00:04:03]}
{[%emt 00:00:12]} Ng3+ {[%clk 00:13:11]} {[%emt 00:00:07]} 38. Kf2 {[%clk
00:04:22]} {[%emt 00:00:11]} Qh4 {[%clk 00:13:36]} {[%emt 00:00:05]} 39. Qe1
{[%clk 00:02:48]} {[%emt 00:02:04]} Qh2 {[%clk 00:08:23]} {[%emt 00:05:43]} 40.
Re7 {[%clk 00:00:52]} {[%emt 00:02:27]} Ne4+ {[%clk 00:08:39]} {[%emt
00:00:14]} 41. Ke3 {[%clk 00:00:33]} {[%emt 00:00:49]} Qxg2 {[%clk 00:07:21]}
{[%emt 00:01:48]} 42. Qg1 {[%clk 00:01:01]} {[%emt 00:00:01]} Qh3+ {[%clk
00:07:29]} {[%emt 00:00:22]} 43. Kd4 {[%clk 00:01:16]} {[%emt 00:00:15]} Qc3+
{[%clk 00:07:48]} {[%emt 00:00:10]} 44. Kd5 {[%clk 00:01:35]} {[%emt 00:00:12]}
Qxb3+ {[%clk 00:08:09]} {[%emt 00:00:08]} 45. Ke5 {[%clk 00:01:40]} {[%emt
00:00:25]} Ng5 {[%clk 00:08:04]} {[%emt 00:00:35]} 0-1

[Event "Kvibergspelen September 2019"]
[Site "Prioritet Serneke Arena, Krutvagen 2, Gothenburg, Sweden"]
[Date "2019.09.28"]
[Round "5.10"]
[White "Ziegler, Ari"]
[Black "Ask, Josef"]
[Result "1-0"]
[TimeControl "15 minutes + 5 seconds per move from move one (Round 1 - 4) / 90 minutes + 30 seconds per move from move one (Round 5 - 8)"]
[WhiteTitle "IM"]
[BlackTitle "FM"]
[WhiteFideId "1700987"]
[BlackFideId "1704583"]
[WhiteElo "2299"]
[BlackElo "2160"]

1. b3 {[%emt 00:00:57]} Nf6 {[%emt 00:00:12]} 2. Bb2 {[%clk 01:30:33]} {[%emt
00:00:12]} g6 {[%clk 01:30:03]} {[%emt 00:00:35]} 3. e3 {[%clk 01:29:46]}
{[%emt 00:01:17]} Bg7 {[%clk 01:30:09]} {[%emt 00:00:24]} 4. Be2 {[%clk
01:30:02]} {[%emt 00:00:14]} c5 {[%clk 01:28:58]} {[%emt 00:01:42]} 5. f4
{[%clk 01:26:13]} {[%emt 00:04:19]} Nc6 {[%clk 01:27:58]} {[%emt 00:01:30]} 6.
Nf3 {[%clk 01:26:34]} {[%emt 00:00:08]} O-O {[%clk 01:26:28]} {[%emt 00:02:01]}
7. O-O {[%clk 01:26:53]} {[%emt 00:00:10]} b6 {[%clk 01:25:24]} {[%emt
00:01:35]} 8. Qe1 {[%clk 01:21:05]} {[%emt 00:06:17]} Bb7 {[%clk 01:23:36]}
{[%emt 00:02:19]} 9. Qh4 {[%clk 01:14:35]} {[%emt 00:06:59]} d5 {[%clk
01:20:37]} {[%emt 00:03:29]} 10. d3 {[%clk 01:08:16]} {[%emt 00:06:50]} e6
{[%clk 01:19:16]} {[%emt 00:01:50]} 11. Nbd2 {[%clk 00:58:15]} {[%emt
00:10:31]} Nd7 {[%clk 01:17:50]} {[%emt 00:01:57]} 12. Qxd8 {[%clk 00:58:35]}
{[%emt 00:00:10]} Raxd8 {[%clk 01:17:30]} {[%emt 00:00:50]} 13. Bxg7 {[%clk
00:58:49]} {[%emt 00:00:15]} Kxg7 {[%clk 01:17:57]} {[%emt 00:00:04]} 14. a3
{[%clk 00:57:07]} {[%emt 00:02:12]} e5 {[%clk 01:06:18]} {[%emt 00:12:09]} 15.
f5 {[%clk 00:55:54]} {[%emt 00:01:43]} Nf6 {[%clk 01:05:10]} {[%emt 00:01:39]}
16. fxg6 {[%clk 00:54:51]} {[%emt 00:01:32]} hxg6 {[%clk 01:05:15]} {[%emt
00:00:25]} 17. Ng5 {[%clk 00:54:43]} {[%emt 00:00:37]} a5 {[%clk 00:59:57]}
{[%emt 00:05:49]} 18. Rf2 {[%clk 00:53:52]} {[%emt 00:01:21]} Rd6 {[%clk
00:57:26]} {[%emt 00:03:01]} 19. Raf1 {[%clk 00:53:37]} {[%emt 00:00:43]} Nd8
{[%clk 00:56:19]} {[%emt 00:01:39]} 20. e4 {[%clk 00:47:32]} {[%emt 00:06:35]}
dxe4 {[%clk 00:48:12]} {[%emt 00:08:37]} 21. Nc4 {[%clk 00:46:41]} {[%emt
00:01:20]} e3 {[%clk 00:46:53]} {[%emt 00:01:49]} 22. Rxf6 {[%clk 00:45:16]}
{[%emt 00:01:55]} Rxf6 {[%clk 00:47:05]} {[%emt 00:00:19]} 23. Rxf6 {[%clk
00:45:40]} {[%emt 00:00:05]} Kxf6 {[%clk 00:47:27]} {[%emt 00:00:09]} 24. Nh7+
{[%clk 00:46:06]} {[%emt 00:00:04]} Kg7 {[%clk 00:47:19]} {[%emt 00:00:39]} 25.
Nxf8 {[%clk 00:46:30]} {[%emt 00:00:05]} Kxf8 {[%clk 00:47:43]} {[%emt
00:00:06]} 26. Nxb6 {[%clk 00:46:53]} {[%emt 00:00:07]} Ne6 {[%clk 00:46:34]}
{[%emt 00:01:39]} 27. Kf1 {[%clk 00:39:02]} {[%emt 00:08:20]} f6 {[%clk
00:40:22]} {[%emt 00:06:43]} 28. Nc4 {[%clk 00:38:03]} {[%emt 00:01:29]} Nd4
{[%clk 00:37:22]} {[%emt 00:03:30]} 29. Nxe3 {[%clk 00:36:33]} {[%emt
00:01:59]} Bc6 {[%clk 00:37:02]} {[%emt 00:00:51]} 30. a4 {[%clk 00:36:30]}
{[%emt 00:00:33]} Ke7 {[%clk 00:37:01]} {[%emt 00:00:31]} 31. Bd1 {[%clk
00:36:46]} {[%emt 00:00:14]} f5 {[%clk 00:37:05]} {[%emt 00:00:26]} 32. Nc4
{[%clk 00:36:36]} {[%emt 00:00:40]} Kf6 {[%clk 00:36:49]} {[%emt 00:00:47]} 33.
Nxa5 {[%clk 00:36:57]} {[%emt 00:00:09]} Bd5 {[%clk 00:36:37]} {[%emt
00:00:42]} 34. c3 {[%clk 00:35:32]} {[%emt 00:01:54]} Ne6 {[%clk 00:36:50]}
{[%emt 00:00:18]} 35. g3 {[%clk 00:35:42]} {[%emt 00:00:19]} g5 {[%clk
00:36:35]} {[%emt 00:00:45]} 36. b4 {[%clk 00:33:01]} {[%emt 00:03:11]} cxb4
{[%clk 00:36:31]} {[%emt 00:00:34]} 37. cxb4 {[%clk 00:33:22]} {[%emt
00:00:10]} e4 {[%clk 00:36:40]} {[%emt 00:00:21]} 38. dxe4 {[%clk 00:33:15]}
{[%emt 00:00:37]} fxe4 {[%clk 00:37:07]} {[%emt 00:00:04]} 39. h4 {[%clk
00:32:36]} {[%emt 00:01:08]} gxh4 {[%clk 00:35:20]} {[%emt 00:02:18]} 40. gxh4
{[%clk 00:32:56]} {[%emt 00:00:09]} Nf4 {[%clk 00:35:33]} {[%emt 00:00:18]} 41.
b5 {[%clk 00:32:44]} {[%emt 00:00:42]} Nd3 {[%clk 00:35:25]} {[%emt 00:00:37]}
42. b6 {[%clk 00:32:39]} {[%emt 00:00:35]} Nc5 {[%clk 00:34:29]} {[%emt
00:01:26]} 43. Kf2 {[%clk 00:32:12]} {[%emt 00:00:56]} 1-0